[Event "Titled Tuesday Blitz March 01 Early 2022"]
[White "Kanyamarala, Trisha"]
[Black "Szpar, Milosz"]
[WhiteFideId "45004722"]
[BlackFideId "1184989"]
[WhiteElo "2002"]
[BlackElo "2447"]
[Result "0-1"]
[Round "02"]
[TimeControl "180+1"]
[Date "2022.03.01"]
[WhiteClock "0:00:04"]
[BlackClock "0:01:56"]

1. c4 {[%clk 0:02:57]}  e6 {[%clk 0:02:57]} 2. Nc3 {[%clk 0:02:55]}  d5 {[%clk 0:02:57]} 3. e3 {[%clk 0:02:54]}  Nf6 {[%clk 0:02:51]} 4. Nf3 {[%clk 0:02:53]}  c6 {[%clk 0:02:45]} 5. b3 {[%clk 0:02:51]}  Bd6 {[%clk 0:02:44]} 6. Bb2 {[%clk 0:02:50]}  Nbd7 {[%clk 0:02:44]} 7. d4 {[%clk 0:02:48]}  O-O {[%clk 0:02:40]} 8. Bd3 {[%clk 0:02:47]}  dxc4 {[%clk 0:02:38]} 9. bxc4 {[%clk 0:02:45]}  e5 {[%clk 0:02:38]} 10. O-O {[%clk 0:02:39]}  Re8 {[%clk 0:02:38]} 11. Qc2 {[%clk 0:02:38]}  Qc7 {[%clk 0:02:31]} 12. Ne4 {[%clk 0:02:21]}  Nxe4 {[%clk 0:02:22]} 13. Bxe4 {[%clk 0:02:22]}  g6 {[%clk 0:02:22]} 14. c5 {[%clk 0:01:55]}  Bf8 {[%clk 0:02:22]} 15. Bd3 {[%clk 0:01:47]}  Bg7 {[%clk 0:02:19]} 16. Bc4 {[%clk 0:01:38]}  exd4 {[%clk 0:02:15]} 17. exd4 {[%clk 0:01:17]}  Nf6 {[%clk 0:02:15]} 18. Ng5 {[%clk 0:01:07]}  Nd5 {[%clk 0:02:14]} 19. Bxd5 {[%clk 0:00:58]}  cxd5 {[%clk 0:02:14]} 20. Rfe1 {[%clk 0:00:57]}  Bf5 {[%clk 0:02:12]} 21. Qb3 {[%clk 0:00:56]}  h6 {[%clk 0:02:10]} 22. Nf3 {[%clk 0:00:54]}  Be4 {[%clk 0:02:11]} 23. Nd2 {[%clk 0:00:46]}  Rad8 {[%clk 0:02:11]} 24. f3 {[%clk 0:00:38]}  Bf5 {[%clk 0:02:11]} 25. Rxe8+ {[%clk 0:00:37]}  Rxe8 {[%clk 0:02:12]} 26. Qxd5 {[%clk 0:00:37]}  Qa5 {[%clk 0:02:13]} 27. Nb3 {[%clk 0:00:33]}  Qb4 {[%clk 0:02:08]} 28. h3 {[%clk 0:00:20]}  h5 {[%clk 0:02:08]} 29. Rc1 {[%clk 0:00:16]}  h4 {[%clk 0:02:06]} 30. Bc3 {[%clk 0:00:16]}  Qb5 {[%clk 0:02:04]} 31. Re1 {[%clk 0:00:13]}  Bf6 {[%clk 0:01:59]} 32. Rxe8+ {[%clk 0:00:12]}  Qxe8 {[%clk 0:01:59]} 33. Qxb7 {[%clk 0:00:10]}  Qe3+ {[%clk 0:01:59]} 34. Kh2 {[%clk 0:00:09]}  Qxc3 {[%clk 0:01:58]} 35. Qb8+ {[%clk 0:00:09]}  Kg7 {[%clk 0:01:59]} 36. Qd6 {[%clk 0:00:09]}  Qe3 {[%clk 0:01:56]} 37. c6 {[%clk 0:00:07]}  Bg5 {[%clk 0:01:55]} 38. Qe5+ {[%clk 0:00:05]}  Qxe5+ {[%clk 0:01:55]} 39. dxe5 {[%clk 0:00:05]}  Bf4+ {[%clk 0:01:56]} 40. Kg1 {[%clk 0:00:06]}  Bxe5 {[%clk 0:01:57]} 41. Kf1 {[%clk 0:00:04]}  Bd3+ {[%clk 0:01:56]} 42. Ke1 {[%clk 0:00:05]}  Bb5 {[%clk 0:01:56]} 43. Na5 {[%clk 0:00:04]}  Bc3+ {[%clk 0:01:56]} 0-1


[Site "https://www.chess.com"]

[Event "Titled Tuesday Blitz March 01 Early 2022"]
[White "Kaplan, Ebru"]
[Black "Sliwicki, Damian"]
[WhiteFideId "6315194"]
[BlackFideId "1127128"]
[WhiteElo "1941"]
[BlackElo "2084"]
[Result "0-1"]
[Round "02"]
[TimeControl "180+1"]
[Date "2022.03.01"]
[WhiteClock "0:00:13"]
[BlackClock "0:00:16"]

1. e4 {[%clk 0:03:00]}  c5 {[%clk 0:02:53]} 2. Nf3 {[%clk 0:03:00]}  g6 {[%clk 0:02:49]} 3. d4 {[%clk 0:03:00]}  cxd4 {[%clk 0:02:46]} 4. Qxd4 {[%clk 0:03:00]}  Nf6 {[%clk 0:02:43]} 5. Nc3 {[%clk 0:03:00]}  Nc6 {[%clk 0:02:31]} 6. Qa4 {[%clk 0:03:00]}  d6 {[%clk 0:02:32]} 7. e5 {[%clk 0:03:00]}  dxe5 {[%clk 0:02:33]} 8. Nxe5 {[%clk 0:03:00]}  Bg7 {[%clk 0:02:31]} 9. Bb5 {[%clk 0:02:58]}  O-O {[%clk 0:02:29]} 10. Nxc6 {[%clk 0:02:58]}  bxc6 {[%clk 0:02:30]} 11. Bxc6 {[%clk 0:02:58]}  Rb8 {[%clk 0:02:30]} 12. O-O {[%clk 0:02:55]}  Bf5 {[%clk 0:02:29]} 13. Bf4 {[%clk 0:02:50]}  Rxb2 {[%clk 0:02:27]} 14. Rfd1 {[%clk 0:02:35]}  Qb6 {[%clk 0:02:16]} 15. Be3 {[%clk 0:02:31]}  Qc7 {[%clk 0:02:09]} 16. Rd2 {[%clk 0:02:16]}  Ng4 {[%clk 0:02:02]} 17. Nd5 {[%clk 0:02:07]}  Qxh2+ {[%clk 0:02:01]} 18. Kf1 {[%clk 0:02:07]}  Qh1+ {[%clk 0:01:52]} 19. Ke2 {[%clk 0:02:07]}  Qxa1 {[%clk 0:01:53]} 20. Nxe7+ {[%clk 0:02:07]}  Kh8 {[%clk 0:01:54]} 21. Nxf5 {[%clk 0:02:06]}  gxf5 {[%clk 0:01:54]} 22. Bd4 {[%clk 0:02:05]}  Bxd4 {[%clk 0:01:26]} 23. Qxd4+ {[%clk 0:02:03]}  Kg8 {[%clk 0:01:23]} 24. f3 {[%clk 0:01:28]}  Nh2 {[%clk 0:01:08]} 25. Qf6 {[%clk 0:01:03]}  Rb1 {[%clk 0:01:01]} 26. Rd4 {[%clk 0:00:48]}  Re1+ {[%clk 0:00:55]} 27. Kf2 {[%clk 0:00:45]}  Qc1 {[%clk 0:00:24]} 28. Kg3 {[%clk 0:00:22]}  Nf1+ {[%clk 0:00:23]} 29. Kh4 {[%clk 0:00:21]}  h6 {[%clk 0:00:15]} 30. Bd5 {[%clk 0:00:13]}  Qg5+ {[%clk 0:00:14]} 31. Qxg5+ {[%clk 0:00:12]}  hxg5+ {[%clk 0:00:15]} 32. Kxg5 {[%clk 0:00:13]}  Ne3 {[%clk 0:00:16]} 0-1


[Site "https://www.chess.com"]

[Event "Titled Tuesday Blitz March 01 Early 2022"]
[White "Kezin, Roman"]
[Black "Volkov, Maksim"]
[WhiteFideId "24124621"]
[BlackFideId "54123070"]
[WhiteElo "2509"]
[BlackElo "2081"]
[Result "0-1"]
[Round "02"]
[TimeControl "180+1"]
[Date "2022.03.01"]
[WhiteClock "0:00:02"]
[BlackClock "0:00:15"]

1. b3 {[%clk 0:02:59]}  e5 {[%clk 0:02:59]} 2. Bb2 {[%clk 0:03:00]}  Nc6 {[%clk 0:02:59]} 3. e3 {[%clk 0:02:58]}  d6 {[%clk 0:02:55]} 4. c4 {[%clk 0:02:54]}  g6 {[%clk 0:02:52]} 5. g3 {[%clk 0:02:53]}  Bg7 {[%clk 0:02:52]} 6. Bg2 {[%clk 0:02:54]}  f5 {[%clk 0:02:50]} 7. Ne2 {[%clk 0:02:53]}  Nf6 {[%clk 0:02:50]} 8. O-O {[%clk 0:02:54]}  O-O {[%clk 0:02:50]} 9. Nbc3 {[%clk 0:02:53]}  Be6 {[%clk 0:02:47]} 10. d3 {[%clk 0:02:53]}  Qd7 {[%clk 0:02:46]} 11. Nd5 {[%clk 0:02:50]}  a5 {[%clk 0:02:44]} 12. Qd2 {[%clk 0:02:49]}  g5 {[%clk 0:02:41]} 13. Rae1 {[%clk 0:02:46]}  Kh8 {[%clk 0:02:34]} 14. f4 {[%clk 0:02:46]}  gxf4 {[%clk 0:02:29]} 15. exf4 {[%clk 0:02:47]}  Rae8 {[%clk 0:02:24]} 16. Ne3 {[%clk 0:02:03]}  Ng4 {[%clk 0:01:41]} 17. Nxg4 {[%clk 0:01:51]}  fxg4 {[%clk 0:01:41]} 18. d4 {[%clk 0:01:50]}  Bf5 {[%clk 0:01:26]} 19. fxe5 {[%clk 0:01:46]}  dxe5 {[%clk 0:01:25]} 20. d5 {[%clk 0:01:46]}  Nb4 {[%clk 0:01:22]} 21. Nc3 {[%clk 0:01:14]}  Nd3 {[%clk 0:01:10]} 22. Rxf5 {[%clk 0:01:13]}  Qxf5 {[%clk 0:01:09]} 23. Rf1 {[%clk 0:01:14]}  Nf4 {[%clk 0:00:31]} 24. Bc1 {[%clk 0:00:30]}  Qg6 {[%clk 0:00:20]} 25. Be4 {[%clk 0:00:05]}  Nh3+ {[%clk 0:00:18]} 26. Kg2 {[%clk 0:00:06]}  Qb6 {[%clk 0:00:16]} 27. Qe1 {[%clk 0:00:02]}  Rxf1 {[%clk 0:00:15]} 28. Kxf1 {[%clk 0:00:01]}  Rf8+ {[%clk 0:00:16]} 29. Ke2 {[%clk 0:00:02]}  Rf2+ {[%clk 0:00:15]} 30. Kd3 {[%clk 0:00:02]}  Qd4# {[%clk 0:00:15]} 0-1


[Site "https://www.chess.com"]

[Event "Titled Tuesday Blitz March 01 Early 2022"]
[White "Kornyukov, Alexey"]
[Black "Shvedova, Alexandra"]
[WhiteFideId "4150457"]
[BlackFideId "54154782"]
[WhiteElo "2303"]
[BlackElo "1920"]
[Result "0-1"]
[Round "02"]
[TimeControl "180+1"]
[Date "2022.03.01"]
[WhiteClock "0:00:38"]
[BlackClock "0:01:02"]

1. e4 {[%clk 0:03:00]}  c5 {[%clk 0:02:59]} 2. c3 {[%clk 0:03:01]}  Nf6 {[%clk 0:02:59]} 3. e5 {[%clk 0:03:01]}  Nd5 {[%clk 0:02:59]} 4. d4 {[%clk 0:03:02]}  cxd4 {[%clk 0:03:00]} 5. cxd4 {[%clk 0:03:02]}  Nc6 {[%clk 0:02:59]} 6. Nf3 {[%clk 0:03:01]}  d6 {[%clk 0:02:59]} 7. exd6 {[%clk 0:03:01]}  Qxd6 {[%clk 0:02:56]} 8. Nc3 {[%clk 0:03:01]}  Bg4 {[%clk 0:02:52]} 9. Be2 {[%clk 0:02:58]}  Nf6 {[%clk 0:02:46]} 10. O-O {[%clk 0:02:57]}  e6 {[%clk 0:02:41]} 11. g3 {[%clk 0:02:53]}  Be7 {[%clk 0:02:29]} 12. Bf4 {[%clk 0:02:52]}  Qd7 {[%clk 0:02:29]} 13. Nb5 {[%clk 0:02:47]}  O-O {[%clk 0:02:25]} 14. Kg2 {[%clk 0:02:44]}  a6 {[%clk 0:02:23]} 15. Nc3 {[%clk 0:02:42]}  Bxf3+ {[%clk 0:02:21]} 16. Bxf3 {[%clk 0:02:41]}  Nxd4 {[%clk 0:02:21]} 17. Be5 {[%clk 0:02:36]}  Nxf3 {[%clk 0:02:13]} 18. Qxf3 {[%clk 0:02:30]}  Rfd8 {[%clk 0:01:58]} 19. Rad1 {[%clk 0:02:28]}  Qc6 {[%clk 0:01:58]} 20. Qxc6 {[%clk 0:02:25]}  bxc6 {[%clk 0:01:59]} 21. Bxf6 {[%clk 0:02:22]}  Bxf6 {[%clk 0:01:59]} 22. Rxd8+ {[%clk 0:02:17]}  Rxd8 {[%clk 0:01:59]} 23. Rd1 {[%clk 0:02:15]}  Rxd1 {[%clk 0:01:53]} 24. Nxd1 {[%clk 0:02:11]}  Kf8 {[%clk 0:01:52]} 25. b3 {[%clk 0:02:05]}  Bd4 {[%clk 0:01:51]} 26. Kf3 {[%clk 0:02:02]}  Ke7 {[%clk 0:01:50]} 27. Ke4 {[%clk 0:02:00]}  c5 {[%clk 0:01:49]} 28. Kd3 {[%clk 0:01:56]}  Kd6 {[%clk 0:01:45]} 29. Kc4 {[%clk 0:01:52]}  e5 {[%clk 0:01:40]} 30. f3 {[%clk 0:01:49]}  f5 {[%clk 0:01:39]} 31. a4 {[%clk 0:01:46]}  g5 {[%clk 0:01:36]} 32. a5 {[%clk 0:01:43]}  h5 {[%clk 0:01:34]} 33. h3 {[%clk 0:01:42]}  g4 {[%clk 0:01:32]} 34. fxg4 {[%clk 0:01:38]}  fxg4 {[%clk 0:01:26]} 35. hxg4 {[%clk 0:01:33]}  hxg4 {[%clk 0:01:26]} 36. b4 {[%clk 0:01:22]}  cxb4 {[%clk 0:01:26]} 37. Kxb4 {[%clk 0:01:21]}  Kd5 {[%clk 0:01:27]} 38. Kb3 {[%clk 0:01:17]}  Ke4 {[%clk 0:01:24]} 39. Kc4 {[%clk 0:01:07]}  Kf3 {[%clk 0:01:16]} 40. Kd3 {[%clk 0:01:05]}  Kxg3 {[%clk 0:01:11]} 41. Ke4 {[%clk 0:01:03]}  Kh2 {[%clk 0:01:09]} 42. Kd3 {[%clk 0:01:02]}  g3 {[%clk 0:01:09]} 43. Ke2 {[%clk 0:01:01]}  g2 {[%clk 0:01:09]} 44. Kf3 {[%clk 0:01:00]}  g1=Q {[%clk 0:01:08]} 45. Ne3 {[%clk 0:00:58]}  Qxe3+ {[%clk 0:01:08]} 46. Kg4 {[%clk 0:00:58]}  Qf4+ {[%clk 0:01:05]} 47. Kh5 {[%clk 0:00:53]}  e4 {[%clk 0:01:04]} 48. Kg6 {[%clk 0:00:51]}  e3 {[%clk 0:01:04]} 49. Kh7 {[%clk 0:00:49]}  e2 {[%clk 0:01:03]} 50. Kg8 {[%clk 0:00:47]}  e1=Q {[%clk 0:01:03]} 51. Kh7 {[%clk 0:00:40]}  Qeh4+ {[%clk 0:01:03]} 52. Kg8 {[%clk 0:00:38]}  Qh8# {[%clk 0:01:02]} 0-1


[Site "https://www.chess.com"]

[Event "Titled Tuesday Blitz March 01 Early 2022"]
[White "Kostiukov, Alexandr"]
[Black "Prado Lobo, Jonas"]
[WhiteFideId "14108100"]
[BlackFideId "32050666"]
[WhiteElo "2202"]
[BlackElo "2199"]
[Result "0-1"]
[Round "02"]
[TimeControl "180+1"]
[Date "2022.03.01"]
[WhiteClock "0:00:02"]
[BlackClock "0:00:59"]

1. g3 {[%clk 0:03:00]}  e5 {[%clk 0:02:56]} 2. c4 {[%clk 0:03:00]}  d5 {[%clk 0:02:54]} 3. cxd5 {[%clk 0:03:01]}  Qxd5 {[%clk 0:02:54]} 4. Nf3 {[%clk 0:03:01]}  Nc6 {[%clk 0:02:54]} 5. Nc3 {[%clk 0:03:01]}  Qa5 {[%clk 0:02:54]} 6. Bg2 {[%clk 0:02:57]}  Nf6 {[%clk 0:02:54]} 7. O-O {[%clk 0:02:55]}  e4 {[%clk 0:02:52]} 8. Ne1 {[%clk 0:02:32]}  Bf5 {[%clk 0:02:51]} 9. Qb3 {[%clk 0:02:28]}  O-O-O {[%clk 0:02:45]} 10. Qxf7 {[%clk 0:02:04]}  Kb8 {[%clk 0:02:44]} 11. d3 {[%clk 0:01:58]}  Bg6 {[%clk 0:02:13]} 12. Qb3 {[%clk 0:01:52]}  Nd4 {[%clk 0:02:13]} 13. Qa4 {[%clk 0:01:16]}  Qh5 {[%clk 0:02:11]} 14. h4 {[%clk 0:00:56]}  Nxe2+ {[%clk 0:02:01]} 15. Nxe2 {[%clk 0:00:50]}  Qxe2 {[%clk 0:02:02]} 16. Be3 {[%clk 0:00:35]}  a6 {[%clk 0:01:44]} 17. dxe4 {[%clk 0:00:34]}  Qxb2 {[%clk 0:01:41]} 18. e5 {[%clk 0:00:20]}  Nd5 {[%clk 0:01:32]} 19. Rd1 {[%clk 0:00:17]}  Qxe5 {[%clk 0:01:19]} 20. Rb1 {[%clk 0:00:13]}  Bxb1 {[%clk 0:01:08]} 21. Nf3 {[%clk 0:00:12]}  Qe4 {[%clk 0:01:07]} 22. Qd1 {[%clk 0:00:08]}  Bd3 {[%clk 0:01:03]} 23. Nd4 {[%clk 0:00:08]}  Nxe3 {[%clk 0:01:00]} 24. fxe3 {[%clk 0:00:04]}  Qxe3+ {[%clk 0:01:00]} 25. Kh2 {[%clk 0:00:02]}  Qxd4 {[%clk 0:00:59]} 0-1


[Site "https://www.chess.com"]

[Event "Titled Tuesday Blitz March 01 Early 2022"]
[White "Kozak, Adam"]
[Black "Kirillov, Dmitry"]
[WhiteFideId "753246"]
[BlackFideId "34180572"]
[WhiteElo "2459"]
[BlackElo "2076"]
[Result "1/2-1/2"]
[Round "02"]
[TimeControl "180+1"]
[Date "2022.03.01"]
[WhiteClock "0:00:06"]
[BlackClock "0:00:04"]

1. Nf3 {[%clk 0:03:00]}  Nf6 {[%clk 0:02:59]} 2. e3 {[%clk 0:03:00]}  d5 {[%clk 0:02:51]} 3. d4 {[%clk 0:03:00]}  c5 {[%clk 0:02:45]} 4. c3 {[%clk 0:02:59]}  Bg4 {[%clk 0:02:36]} 5. dxc5 {[%clk 0:02:59]}  e5 {[%clk 0:02:33]} 6. Qa4+ {[%clk 0:02:58]}  Bd7 {[%clk 0:02:24]} 7. Bb5 {[%clk 0:02:54]}  Nc6 {[%clk 0:02:11]} 8. b4 {[%clk 0:02:53]}  a5 {[%clk 0:01:46]} 9. Qb3 {[%clk 0:02:48]}  e4 {[%clk 0:01:41]} 10. Nd4 {[%clk 0:02:45]}  Ne5 {[%clk 0:01:41]} 11. Be2 {[%clk 0:02:43]}  Be7 {[%clk 0:01:37]} 12. h3 {[%clk 0:02:38]}  b6 {[%clk 0:01:30]} 13. cxb6 {[%clk 0:02:36]}  Qxb6 {[%clk 0:01:31]} 14. a3 {[%clk 0:02:36]}  O-O {[%clk 0:01:27]} 15. Nd2 {[%clk 0:02:31]}  Rfc8 {[%clk 0:01:20]} 16. Bb2 {[%clk 0:02:30]}  axb4 {[%clk 0:01:17]} 17. cxb4 {[%clk 0:02:30]}  Bxb4 {[%clk 0:01:05]} 18. O-O {[%clk 0:02:20]}  Ba5 {[%clk 0:01:04]} 19. Qxb6 {[%clk 0:02:18]}  Bxb6 {[%clk 0:01:05]} 20. Rfc1 {[%clk 0:02:15]}  Nd3 {[%clk 0:01:01]} 21. Bxd3 {[%clk 0:02:13]}  exd3 {[%clk 0:01:02]} 22. N2f3 {[%clk 0:02:12]}  Ne4 {[%clk 0:00:55]} 23. Rd1 {[%clk 0:02:11]}  Nc5 {[%clk 0:00:47]} 24. Ne5 {[%clk 0:02:10]}  Ba4 {[%clk 0:00:46]} 25. Rd2 {[%clk 0:02:02]}  Ba5 {[%clk 0:00:43]} 26. Rxd3 {[%clk 0:02:03]}  Nxd3 {[%clk 0:00:41]} 27. Nxd3 {[%clk 0:02:04]}  Rc4 {[%clk 0:00:37]} 28. Nf4 {[%clk 0:02:03]}  Rb8 {[%clk 0:00:36]} 29. Ra2 {[%clk 0:01:56]}  Bc2 {[%clk 0:00:23]} 30. Nxd5 {[%clk 0:01:51]}  Bb1 {[%clk 0:00:21]} 31. Ne7+ {[%clk 0:01:39]}  Kf8 {[%clk 0:00:21]} 32. Nec6 {[%clk 0:01:39]}  Rb6 {[%clk 0:00:20]} 33. Nxa5 {[%clk 0:01:37]}  Ra4 {[%clk 0:00:20]} 34. Ra1 {[%clk 0:01:32]}  Rxb2 {[%clk 0:00:19]} 35. Nab3 {[%clk 0:01:31]}  Ba2 {[%clk 0:00:16]} 36. Nc5 {[%clk 0:01:21]}  Rxa3 {[%clk 0:00:16]} 37. Nd7+ {[%clk 0:01:11]}  Ke7 {[%clk 0:00:14]} 38. Ne5 {[%clk 0:01:11]}  Rb1+ {[%clk 0:00:09]} 39. Rxb1 {[%clk 0:01:11]}  Bxb1 {[%clk 0:00:10]} 40. Ndc6+ {[%clk 0:01:12]}  Kf8 {[%clk 0:00:08]} 41. Nd4 {[%clk 0:01:06]}  g6 {[%clk 0:00:04]} 42. g4 {[%clk 0:01:05]}  Kg7 {[%clk 0:00:05]} 43. g5 {[%clk 0:01:04]}  f6 {[%clk 0:00:04]} 44. Ne6+ {[%clk 0:01:03]}  Kg8 {[%clk 0:00:04]} 45. gxf6 {[%clk 0:01:03]}  Ra7 {[%clk 0:00:02]} 46. f7+ {[%clk 0:01:01]}  Rxf7 {[%clk 0:00:02]} 47. Nxf7 {[%clk 0:01:01]}  Kxf7 {[%clk 0:00:03]} 48. Nd4 {[%clk 0:01:01]}  Kf6 {[%clk 0:00:03]} 49. h4 {[%clk 0:01:01]}  Be4 {[%clk 0:00:04]} 50. Kh2 {[%clk 0:01:01]}  Bd5 {[%clk 0:00:04]} 51. Kg3 {[%clk 0:01:01]}  h6 {[%clk 0:00:05]} 52. Kg4 {[%clk 0:00:50]}  Bc4 {[%clk 0:00:02]} 53. Kf4 {[%clk 0:00:48]}  g5+ {[%clk 0:00:01]} 54. hxg5+ {[%clk 0:00:48]}  hxg5+ {[%clk 0:00:02]} 55. Kg4 {[%clk 0:00:49]}  Ba6 {[%clk 0:00:03]} 56. Kh5 {[%clk 0:00:47]}  Bc8 {[%clk 0:00:02]} 57. Kh6 {[%clk 0:00:46]}  g4 {[%clk 0:00:02]} 58. Kh5 {[%clk 0:00:46]}  Bd7 {[%clk 0:00:01]} 59. Ne2 {[%clk 0:00:41]}  Kf5 {[%clk 0:00:02]} 60. Ng3+ {[%clk 0:00:41]}  Ke5 {[%clk 0:00:02]} 61. Kg5 {[%clk 0:00:41]}  Be6 {[%clk 0:00:03]} 62. Nh5 {[%clk 0:00:41]}  Ke4 {[%clk 0:00:04]} 63. Nf4 {[%clk 0:00:28]}  Bd7 {[%clk 0:00:02]} 64. Kh4 {[%clk 0:00:13]}  Kf3 {[%clk 0:00:02]} 65. Nd3 {[%clk 0:00:13]}  Bb5 {[%clk 0:00:03]} 66. Ne5+ {[%clk 0:00:08]}  Kxf2 {[%clk 0:00:03]} 67. Nxg4+ {[%clk 0:00:08]}  Kf3 {[%clk 0:00:04]} 68. Kg5 {[%clk 0:00:06]}  Bd7 {[%clk 0:00:03]} 69. Ne5+ {[%clk 0:00:06]}  Kxe3 {[%clk 0:00:04]} 1/2-1/2


[Site "https://www.chess.com"]

[Event "Titled Tuesday Blitz March 01 Early 2022"]
[White "Kozlov, Gennady"]
[Black "Osmonbekov, Talaibek"]
[WhiteFideId "4191668"]
[BlackFideId "2017253"]
[WhiteElo "2392"]
[BlackElo "2135"]
[Result "1-0"]
[Round "02"]
[TimeControl "180+1"]
[Date "2022.03.01"]
[WhiteClock "0:00:18"]
[BlackClock "0:00:02"]

1. b3 {[%clk 0:02:59]}  e5 {[%clk 0:02:58]} 2. Bb2 {[%clk 0:02:58]}  d6 {[%clk 0:02:59]} 3. e3 {[%clk 0:02:58]}  f5 {[%clk 0:02:59]} 4. f4 {[%clk 0:02:57]}  Nc6 {[%clk 0:02:56]} 5. Bb5 {[%clk 0:02:56]}  e4 {[%clk 0:02:51]} 6. Ne2 {[%clk 0:02:55]}  Nf6 {[%clk 0:02:51]} 7. O-O {[%clk 0:02:53]}  Be7 {[%clk 0:02:50]} 8. Nd4 {[%clk 0:02:52]}  Bd7 {[%clk 0:02:48]} 9. Qe1 {[%clk 0:02:51]}  O-O {[%clk 0:02:44]} 10. Nxc6 {[%clk 0:02:49]}  bxc6 {[%clk 0:02:40]} 11. Ba6 {[%clk 0:02:48]}  Rb8 {[%clk 0:02:39]} 12. a4 {[%clk 0:02:44]}  Rb6 {[%clk 0:02:36]} 13. Be2 {[%clk 0:02:42]}  a5 {[%clk 0:02:33]} 14. Na3 {[%clk 0:02:40]}  d5 {[%clk 0:02:32]} 15. Bc3 {[%clk 0:02:39]}  Bb4 {[%clk 0:02:26]} 16. Bd4 {[%clk 0:02:37]}  Rb8 {[%clk 0:02:21]} 17. c3 {[%clk 0:02:35]}  Bd6 {[%clk 0:02:17]} 18. Qd1 {[%clk 0:02:24]}  Qe7 {[%clk 0:02:15]} 19. Nb1 {[%clk 0:02:20]}  c5 {[%clk 0:02:06]} 20. Bxf6 {[%clk 0:02:17]}  Qxf6 {[%clk 0:02:07]} 21. Ra2 {[%clk 0:02:12]}  Be6 {[%clk 0:02:05]} 22. c4 {[%clk 0:02:12]}  d4 {[%clk 0:02:03]} 23. exd4 {[%clk 0:02:08]}  cxd4 {[%clk 0:02:01]} 24. d3 {[%clk 0:02:08]}  c5 {[%clk 0:01:58]} 25. Na3 {[%clk 0:02:04]}  Rb4 {[%clk 0:01:48]} 26. Nb5 {[%clk 0:02:02]}  Bb8 {[%clk 0:01:49]} 27. Qc2 {[%clk 0:01:58]}  Qh6 {[%clk 0:01:40]} 28. dxe4 {[%clk 0:01:54]}  fxe4 {[%clk 0:01:40]} 29. Qxe4 {[%clk 0:01:53]}  Rxb3 {[%clk 0:01:38]} 30. Bd3 {[%clk 0:01:43]}  Kh8 {[%clk 0:01:30]} 31. Raf2 {[%clk 0:01:36]}  Bf5 {[%clk 0:01:29]} 32. Qe7 {[%clk 0:01:33]}  Qf6 {[%clk 0:01:09]} 33. Qxf6 {[%clk 0:01:31]}  Rxf6 {[%clk 0:01:10]} 34. Bxf5 {[%clk 0:01:31]}  Rxf5 {[%clk 0:01:10]} 35. g3 {[%clk 0:01:31]}  Re3 {[%clk 0:00:58]} 36. Rf3 {[%clk 0:01:28]}  Re4 {[%clk 0:00:51]} 37. Rb1 {[%clk 0:01:26]}  h5 {[%clk 0:00:47]} 38. Na3 {[%clk 0:01:03]}  Bc7 {[%clk 0:00:42]} 39. Rb7 {[%clk 0:01:00]}  Rf7 {[%clk 0:00:41]} 40. Nb5 {[%clk 0:00:58]}  Ree7 {[%clk 0:00:39]} 41. Ra7 {[%clk 0:00:51]}  g5 {[%clk 0:00:36]} 42. Nxc7 {[%clk 0:00:43]}  g4 {[%clk 0:00:29]} 43. Rd3 {[%clk 0:00:40]}  Rxc7 {[%clk 0:00:29]} 44. Rxa5 {[%clk 0:00:40]}  Ra7 {[%clk 0:00:29]} 45. Rxc5 {[%clk 0:00:40]}  Rfe7 {[%clk 0:00:29]} 46. Re5 {[%clk 0:00:38]}  Rxe5 {[%clk 0:00:24]} 47. fxe5 {[%clk 0:00:38]}  Rxa4 {[%clk 0:00:23]} 48. Rxd4 {[%clk 0:00:38]}  Kg7 {[%clk 0:00:24]} 49. Kf2 {[%clk 0:00:36]}  Kf7 {[%clk 0:00:23]} 50. Ke3 {[%clk 0:00:35]}  Ra2 {[%clk 0:00:20]} 51. Kf4 {[%clk 0:00:35]}  Rxh2 {[%clk 0:00:19]} 52. Rd7+ {[%clk 0:00:34]}  Ke6 {[%clk 0:00:18]} 53. Rd6+ {[%clk 0:00:34]}  Ke7 {[%clk 0:00:18]} 54. Kg5 {[%clk 0:00:32]}  Rc2 {[%clk 0:00:18]} 55. Rd4 {[%clk 0:00:30]}  Re2 {[%clk 0:00:17]} 56. Kxh5 {[%clk 0:00:29]}  Rxe5+ {[%clk 0:00:11]} 57. Kxg4 {[%clk 0:00:29]}  Re3 {[%clk 0:00:10]} 58. Kf4 {[%clk 0:00:29]}  Rc3 {[%clk 0:00:09]} 59. g4 {[%clk 0:00:29]}  Ke6 {[%clk 0:00:09]} 60. g5 {[%clk 0:00:29]}  Rc1 {[%clk 0:00:10]} 61. Re4+ {[%clk 0:00:28]}  Kf7 {[%clk 0:00:08]} 62. Kf5 {[%clk 0:00:27]}  Rf1+ {[%clk 0:00:08]} 63. Rf4 {[%clk 0:00:27]}  Rg1 {[%clk 0:00:08]} 64. Rg4 {[%clk 0:00:21]}  Rf1+ {[%clk 0:00:08]} 65. Ke5 {[%clk 0:00:20]}  Re1+ {[%clk 0:00:08]} 66. Kd6 {[%clk 0:00:20]}  Rd1+ {[%clk 0:00:07]} 67. Kc6 {[%clk 0:00:20]}  Kg6 {[%clk 0:00:05]} 68. c5 {[%clk 0:00:20]}  Kf5 {[%clk 0:00:04]} 69. Rg2 {[%clk 0:00:20]}  Kg6 {[%clk 0:00:05]} 70. Kb7 {[%clk 0:00:20]}  Rc1 {[%clk 0:00:05]} 71. c6 {[%clk 0:00:20]}  Rb1+ {[%clk 0:00:05]} 72. Kc8 {[%clk 0:00:19]}  Rc1 {[%clk 0:00:05]} 73. c7 {[%clk 0:00:19]}  Rc3 {[%clk 0:00:05]} 74. Rd2 {[%clk 0:00:19]}  Kxg5 {[%clk 0:00:02]} 75. Kd8 {[%clk 0:00:18]} 1-0


[Site "https://www.chess.com"]